bitfinex/quotes_BTCUSD_20230404
["timestamp","ask_amount","ask_price","bid_price","bid_amount"]
[1680607479209,0.28384381,28299.0,28289.0,0.25]
[1680607479210,0.11440381,28299.0,28289.0,0.25]
[1680607479442,0.11440381,28299.0,28284.0,0.02585358]
[1680607479443,0.0768,28290.0,28284.0,0.02585358]
[1680607479665,0.0768,28290.0,28282.0,0.0211]
[1680607479666,0.0768,28287.0,28282.0,0.0211]
[1680607479891,0.0768,28287.0,28281.0,0.24173528]
[1680607479892,0.007071,28285.0,28281.0,0.24173528]
[1680607480149,0.11422381,28284.0,28281.0,0.24173528]
[1680607480368,0.28414381,28284.0,28282.0,0.02417353]
[1680607480609,0.019548,28283.0,28282.0,0.02417353]
[1680607480865,0.019548,28283.0,28281.0,0.24173528]
[1680607480866,0.018782,28282.0,28281.0,0.24173528]
[1680607481088,0.00018,28282.0,28281.0,0.24173528]
[1680607481551,0.00018,28283.0,28281.0,0.24173528]
[1680607481781,0.001,28282.0,28281.0,0.24173528]
[1680607482680,0.00118,28282.0,28281.0,0.27083025]
[1680607482941,0.17074,28282.0,28281.0,0.27083025]
[1680607483185,0.00118,28282.0,28281.0,0.24173528]
[1680607483643,0.196587,28282.0,28281.0,0.24173528]
[1680607484086,0.521987,28282.0,28281.0,0.24173528]
[1680607484302,0.542987,28282.0,28281.0,0.24173528]
[1680607484787,0.585916,28282.0,28281.0,0.27083025]
[1680607485082,0.318776,28282.0,28281.0,0.27083025]
[1680607485368,0.32718,28282.0,28281.0,0.24173528]
[1680607485953,0.02718,28282.0,28281.0,0.26092042]
[1680607486282,0.027,28282.0,28281.0,0.26092042]
[1680607486528,0.21669,28282.0,28281.0,0.26092042]
[1680607486761,0.51669,28282.0,28281.0,0.26092042]
[1680607486997,0.21669,28282.0,28281.0,0.2919339]
[1680607487259,0.02718,28282.0,28281.0,0.2919339]
[1680607487708,0.027,28282.0,28281.0,0.26092042]
[1680607487934,0.280611,28282.0,28281.0,0.26092042]
[1680607488160,0.300602,28282.0,28281.0,0.26092042]
[1680607488607,0.309102,28282.0,28281.0,0.26092042]
[1680607488836,0.309102,28282.0,28281.0,0.24173528]
[1680607489065,0.980902,28282.0,28281.0,0.24173528]
[1680607490234,0.980902,28282.0,28281.0,0.24191528]
[1680607490235,0.98067963,28282.0,28281.0,0.24191528]
[1680607490464,0.98085963,28282.0,28281.0,0.24173528]
[1680607491386,0.94935963,28282.0,28281.0,0.24173528]
[1680607491838,0.94935963,28282.0,28281.0,0.23543771]
[1680607491839,1.09935963,28282.0,28281.0,0.23543771]
[1680607492079,1.09935963,28282.0,28266.0,0.05204334]
[1680607492080,0.2,28270.0,28266.0,0.05204334]
[1680607492315,0.5,28277.0,28266.0,0.05204334]
[1680607492316,0.6171,28267.0,28266.0,0.00265729]
[1680607492545,0.77126781,28267.0,28266.0,0.00265729]
[1680607492801,1.16822849,28267.0,28266.0,0.00265729]
[1680607493039,0.98854676,28267.0,28266.0,0.00265729]
[1680607493286,0.2,28264.0,28255.0,0.00018]
[1680607493521,0.2,28257.0,28255.0,6e-05]
[1680607493789,0.2,28254.0,28247.0,0.00168]
[1680607494014,0.0453,28249.0,28242.0,0.24668]
[1680607494252,0.12130381,28248.0,28242.0,0.24668]
[1680607494485,0.12130381,28248.0,28241.0,0.027484]
[1680607494486,0.0453,28244.0,28241.0,0.027484]
[1680607494730,0.11422381,28243.0,28241.0,0.027484]
[1680607494962,0.0453,28244.0,28243.0,0.20746104]
[1680607495193,0.30018,28246.0,28243.0,0.23095554]
[1680607495424,0.00018,28246.0,28244.0,0.239957]
[1680607495653,0.04928627,28248.0,28247.0,0.2]
[1680607495892,0.04928627,28248.0,28247.0,0.03908]
[1680607496145,0.0453,28256.0,28247.0,0.23908]
[1680607496146,0.16992,28254.0,28247.0,0.23908]
[1680607496378,0.00018,28254.0,28248.0,0.19084323]
[1680607496602,0.16992,28255.0,28248.0,0.19084323]
[1680607496846,0.1701,28255.0,28249.0,0.25]
[1680607497078,0.1701,28255.0,28250.0,0.14189681]
[1680607497305,0.1701,28255.0,28249.0,0.45]
[1680607497525,0.477178,28255.0,28249.0,0.49991264]
[1680607497750,0.477178,28255.0,28251.0,0.02519043]
[1680607497984,0.0085,28254.0,28251.0,0.02519043]
[1680607498203,0.015758,28254.0,28251.0,0.02519043]
[1680607498450,0.020143,28253.0,28251.0,0.02519043]
[1680607498673,0.020143,28253.0,28246.0,0.00038425]
[1680607498674,0.029737,28252.0,28246.0,0.00038425]
[1680607498897,0.019977,28251.0,28246.0,0.00038425]
[1680607499120,0.007079,28250.0,28246.0,0.00038425]
[1680607499343,0.018893,28249.0,28246.0,0.00038425]
[1680607499573,0.30018,28250.0,28246.0,0.00038425]
[1680607499803,0.00018,28250.0,28248.0,0.25]
[1680607500060,0.014,28250.0,28249.0,0.039497]
[1680607500514,0.014,28250.0,28249.0,0.18151381]
[1680607500741,0.014,28250.0,28249.0,0.053836]
[1680607501190,0.014,28250.0,28249.0,0.053656]
[1680607501576,0.00018,28256.0,28254.0,0.2]
[1680607501871,0.04928776,28258.0,28255.0,0.62389481]
[1680607502143,0.25,28268.0,28255.0,0.62389481]
[1680607502144,0.00018,28262.0,28257.0,0.2]
[1680607502405,0.16986,28266.0,28262.0,0.2]
[1680607502406,0.04917792,28263.0,28262.0,0.2]
[1680607502636,0.03488655,28272.0,28262.0,0.18206181]
[1680607502637,0.00018,28267.0,28262.0,0.18206181]
[1680607502858,0.00018,28267.0,28263.0,0.43106681]
[1680607503093,0.1698,28271.0,28264.0,0.039864]
[1680607503094,0.00018,28268.0,28264.0,0.039864]
[1680607503325,0.00018,28269.0,28265.0,0.20507289]
[1680607503557,0.00018,28269.0,28266.0,0.14189681]
[1680607503778,0.00018,28269.0,28267.0,0.25]
[1680607503998,0.00018,28269.0,28268.0,0.18070781]
[1680607504232,0.00018,28270.0,28268.0,0.038811]
[1680607504473,0.00018,28271.0,28269.0,0.0288811]
[1680607504698,0.00018,28273.0,28265.0,0.06317608]
[1680607504920,0.007254,28273.0,28265.0,0.20507289]
[1680607505171,0.021222,28272.0,28266.0,0.2017941]
[1680607505390,0.019,28269.0,28268.0,0.001]
[1680607505608,0.00018,28271.0,28267.0,0.039065]
[1680607505825,0.007254,28272.0,28267.0,0.05527884]
[1680607506042,0.00018,28272.0,28267.0,0.15811065]
[1680607506268,0.00618,28272.0,28268.0,0.03886]
[1680607506535,0.00618,28272.0,28267.0,0.15811065]
[1680607506753,0.00618,28272.0,28268.0,0.291478]
[1680607506975,0.00618,28272.0,28269.0,0.10540587]
[1680607507197,0.00618,28272.0,28270.0,0.037536]
[1680607507198,0.00018,28272.0,28270.0,0.037536]
[1680607507423,0.00018,28272.0,28271.0,0.2]
[1680607507424,0.001,28272.0,28271.0,0.2]
[1680607507642,0.00018,28275.0,28271.0,0.238648]
[1680607507865,0.00018,28277.0,28272.0,0.0628988]
[1680607508090,0.00012,28277.0,28273.0,0.039327]
[1680607508315,0.1291805,28293.0,28273.0,0.039327]
[1680607508316,0.04999575,28279.0,28274.0,0.34189681]
[1680607508538,0.04999575,28279.0,28275.0,0.22301289]
[1680607508778,0.04999575,28279.0,28277.0,0.2]
[1680607509047,6e-05,28284.0,28281.0,0.2]
[1680607509243,0.00707,28286.0,28281.0,0.14189681]
[1680607509469,0.018523,28285.0,28281.0,0.14189681]
[1680607509690,0.018523,28285.0,28281.0,0.15608649]
[1680607509691,0.560243,28285.0,28281.0,0.15608649]
[1680607509916,0.560243,28285.0,28274.0,0.00018]
[1680607509917,0.3718,28283.0,28274.0,0.00018]
[1680607510188,0.007251,28283.0,28272.0,0.00556009]
[1680607510402,0.007251,28283.0,28275.0,0.008]
[1680607510403,0.003,28279.0,28275.0,0.008]
[1680607510621,0.00018,28280.0,28276.0,0.039329]
[1680607510843,0.04976008,28283.0,28277.0,0.0039329]
[1680607511067,0.04976008,28283.0,28277.0,0.14582971]
[1680607511295,0.05076008,28283.0,28277.0,0.14582971]
[1680607511539,0.21950008,28283.0,28277.0,0.14582971]
[1680607511761,0.35488973,28283.0,28278.0,0.01458297]
[1680607511980,0.16974,28282.0,28278.0,0.15647978]
[1680607512208,0.46986965,28282.0,28278.0,0.01458297]
[1680607512435,0.3,28282.0,28277.0,0.001]
[1680607512682,0.3,28282.0,28277.0,0.14289681]
[1680607512958,0.05482008,28283.0,28277.0,0.14289681]
[1680607513177,0.04976008,28283.0,28278.0,0.25395868]
[1680607513405,0.027,28283.0,28279.0,0.040056]
[1680607513630,0.16980965,28289.0,28280.0,0.25]
[1680607513857,0.16980965,28289.0,28281.0,0.17090241]
[1680607513858,0.00012965,28289.0,28281.0,0.17090241]
[1680607514083,0.04986081,28289.0,28281.0,0.17090241]
[1680607514307,0.003,28283.0,28281.0,0.17090241]
[1680607514528,0.003,28283.0,28282.0,0.037929]
[1680607514750,0.04986081,28289.0,28281.0,0.038363]
[1680607514971,0.08393081,28289.0,28282.0,0.14189681]
[1680607515189,0.07686081,28289.0,28282.0,0.14189681]
[1680607515633,0.07686081,28289.0,28283.0,0.039486]
[1680607515859,0.04986081,28289.0,28284.0,0.16003509]
[1680607516077,0.34986081,28289.0,28285.0,0.038356]
[1680607516300,0.04993046,28289.0,28285.0,0.18025281]
[1680607516556,0.04993046,28289.0,28287.0,0.25]
[1680607516557,0.04986081,28289.0,28287.0,0.25]
[1680607516859,0.03531797,28293.0,28288.0,0.038637]
[1680607517078,0.03531797,28293.0,28289.0,0.14189681]
[1680607517303,0.16980965,28294.0,28289.0,0.14189681]
[1680607517526,0.00012965,28294.0,28290.0,0.14189681]
[1680607517745,0.002,28293.0,28290.0,0.14189681]
[1680607517983,0.002,28293.0,28288.0,0.012]
[1680607518203,0.002,28293.0,28289.0,0.037339]
[1680607518424,0.002,28293.0,28290.0,0.2]
[1680607518663,0.002,28293.0,28291.0,0.289456]
[1680607518885,0.25099263,28299.0,28292.0,0.038174]
[1680607519115,0.001,28294.0,28293.0,0.14189681]
[1680607519367,0.001,28294.0,28291.0,0.25018]
[1680607519598,0.015567,28298.0,28292.0,0.038994]
[1680607519826,0.001,28293.0,28292.0,0.14189681]
[1680607520055,0.19646561,28297.0,28288.0,0.00018]
[1680607520279,0.207068,28293.0,28288.0,0.14189681]
[1680607520490,0.018491,28292.0,28284.0,0.25018]
[1680607520729,0.00012,28295.0,28292.0,0.00087035]
[1680607520946,0.00012,28295.0,28292.0,0.14276716]
[1680607520947,0.0498468,28293.0,28292.0,0.14276716]
[1680607521167,0.3,28296.0,28292.0,0.14276716]
[1680607521168,0.16957765,28294.0,28292.0,0.00087035]
[1680607521387,0.019732,28293.0,28292.0,0.00087035]
[1680607521603,0.020709,28294.0,28286.0,0.00018]
[1680607521832,0.001,28293.0,28288.0,0.008]
[1680607522060,0.3,28294.0,28287.0,0.0051998]
[1680607522276,0.005,28293.0,28292.0,0.001]
[1680607522496,0.197023,28293.0,28289.0,0.00018]
[1680607522713,0.476748,28293.0,28289.0,0.00018]
[1680607522937,0.16968,28292.0,28288.0,0.00818]
[1680607523150,0.46968,28292.0,28288.0,0.00018]
[1680607523377,0.25,28291.0,28286.0,0.00018]
[1680607523601,0.3,28290.0,28287.0,0.0050198]
[1680607523823,0.3,28290.0,28286.0,0.00018]
[1680607524568,0.46968,28290.0,28289.0,0.001]
[1680607524808,0.3,28290.0,28286.0,0.00018]
[1680607525036,0.3,28289.0,28286.0,0.01218]
[1680607525265,0.3,28289.0,28287.0,0.039392]
[1680607525481,0.3,28289.0,28287.0,0.039572]
[1680607525702,0.005,28290.0,28288.0,0.01414]
[1680607525926,0.46968,28292.0,28289.0,0.036889]
[1680607525927,0.3,28292.0,28289.0,0.036889]
[1680607526150,0.34919267,28293.0,28289.0,0.0053009]
[1680607526383,0.34919267,28293.0,28289.0,0.14189681]
[1680607526601,0.16986,28295.0,28290.0,0.288616]
[1680607526820,0.04990827,28295.0,28290.0,0.39207681]
[1680607527078,0.16968,28295.0,28291.0,0.03920768]
[1680607527293,0.16968,28295.0,28291.0,0.18128449]
[1680607527517,0.16986,28298.0,28292.0,0.040643]
[1680607527741,0.012,28295.0,28293.0,0.14189681]
[1680607527967,0.007068,28295.0,28292.0,0.00018]
[1680607528197,0.5718,28293.0,28291.0,0.002]
[1680607528441,0.69051,28292.0,28284.0,0.00018]
[1680607528669,0.019352,28291.0,28282.0,0.04928043]
[1680607528873,0.02121,28289.0,28283.0,0.00492804]
[1680607529093,0.32121,28289.0,28283.0,0.00492804]
[1680607529310,0.3,28288.0,28283.0,0.00492804]
[1680607529527,0.00707,28287.0,28283.0,0.00492804]
[1680607529744,0.00707,28287.0,28284.0,0.02615751]
[1680607529973,0.00707,28287.0,28284.0,0.02073666]
[1680607530196,0.00018,28290.0,28284.0,0.02073666]
[1680607530421,0.421637,28294.0,28286.0,0.25]
[1680607530422,0.007069,28291.0,28286.0,0.25]
[1680607530666,0.3718,28291.0,28286.0,0.14207681]
[1680607530889,1.27271525,28290.0,28285.0,0.00018]
[1680607531116,0.00707,28289.0,28285.0,0.04944549]
[1680607531333,0.007069,28290.0,28286.0,0.00514455]
[1680607531551,0.007069,28290.0,28282.0,0.00018]
[1680607531776,0.29989618,28290.0,28283.0,0.14189681]
[1680607532006,0.29989618,28290.0,28283.0,0.14207681]
[1680607532349,0.002,28289.0,28285.0,0.002]
[1680607532453,0.29989618,28290.0,28283.0,0.20527426]
[1680607532677,0.007249,28292.0,28285.0,0.02996288]
[1680607532678,0.00018,28292.0,28285.0,0.02996288]
[1680607532902,0.02449754,28289.0,28286.0,0.38182581]
[1680607533121,0.02449754,28289.0,28287.0,0.09570587]
[1680607533357,0.02449754,28289.0,28288.0,0.287792]
[1680607533580,0.02449754,28289.0,28288.0,0.287972]
[1680607533803,0.002,28290.0,28288.0,0.287972]
[1680607534021,0.16968,28296.0,28289.0,0.039931]
[1680607534237,0.16968,28296.0,28290.0,0.17232191]
[1680607534238,1.27247637,28295.0,28290.0,0.17232191]
[1680607534466,0.00018,28296.0,28290.0,0.17250191]
[1680607534687,0.00018,28296.0,28290.0,0.17232191]
[1680607534688,0.007068,28294.0,28290.0,0.17232191]
[1680607534906,0.02329547,28295.0,28291.0,0.02222453]
[1680607535125,0.02329547,28295.0,28292.0,0.037313]
[1680607535126,0.19297547,28295.0,28292.0,0.037313]
[1680607535348,0.021205,28294.0,28291.0,0.02240453]
[1680607535561,0.021205,28294.0,28292.0,0.039897]
[1680607535784,0.04129547,28295.0,28291.0,0.038988]
[1680607536257,0.02329547,28295.0,28291.0,0.038988]
[1680607536488,0.007068,28294.0,28291.0,0.038988]
[1680607536702,0.010068,28295.0,28291.0,0.004]
[1680607536920,1.27247649,28294.0,28291.0,0.004]
[1680607537137,1.27247649,28294.0,28289.0,0.04992343]
[1680607537366,1.27247649,28294.0,28291.0,0.004]
[1680607537609,1.27247649,28294.0,28289.0,0.04992343]
[1680607537833,0.3,28293.0,28291.0,0.004]
[1680607538056,0.3,28293.0,28287.0,0.0264141]
[1680607538057,0.30012,28293.0,28287.0,0.0264141]
[1680607538289,0.00018,28293.0,28289.0,0.278279]
[1680607538518,0.00018,28293.0,28290.0,0.036475]
[1680607538742,0.00018,28293.0,28291.0,0.06121698]
[1680607539036,0.00018,28293.0,28292.0,0.038752]
[1680607539256,0.002,28294.0,28292.0,0.038752]
[1680607539257,0.00018,28294.0,28292.0,0.038752]
[1680607539470,0.001,28293.0,28292.0,0.038752]
[1680607539690,0.001,28293.0,28291.0,0.001]
[1680607539920,0.003,28293.0,28291.0,0.002]
[1680607540160,0.00018,28295.0,28291.0,0.037953]
[1680607540385,0.00018,28295.0,28292.0,0.001]
[1680607540826,0.00018,28295.0,28291.0,0.0502092]
[1680607541053,0.002,28293.0,28292.0,0.038117]
[1680607541735,0.002,28293.0,28291.0,0.001]
[1680607541961,0.5718,28292.0,28286.0,0.00018]
[1680607542199,0.5718,28292.0,28280.0,0.89]
[1680607542200,0.2,28286.0,28280.0,0.89]
[1680607542427,0.043388,28285.0,28281.0,0.00018]
[1680607542652,0.222671,28284.0,28281.0,0.00018]
[1680607542891,0.027977,28283.0,28281.0,0.00018]
[1680607543116,0.02201,28282.0,28281.0,6e-05]
[1680607543337,0.029081,28282.0,28280.0,0.89]
[1680607543560,0.007071,28282.0,28280.0,0.89]
[1680607543792,0.02346104,28282.0,28280.0,0.979018]
[1680607544236,0.02346104,28282.0,28280.0,0.979198]
[1680607544691,0.01639004,28282.0,28280.0,0.979198]
[1680607545452,0.04139004,28282.0,28280.0,0.979198]
[1680607545673,0.01639004,28282.0,28281.0,0.1368612]
[1680607545901,0.03539004,28282.0,28281.0,0.1368612]
[1680607546123,0.01639004,28282.0,28281.0,0.1368612]
[1680607546346,0.01839004,28282.0,28281.0,0.3870412]
[1680607546575,0.01639004,28282.0,28281.0,0.3870412]
[1680607546797,0.002,28282.0,28281.0,0.4031842]
[1680607547012,0.002,28282.0,28281.0,0.54508101]
[1680607547229,0.002,28282.0,28281.0,0.7749842]
[1680607547884,0.00018,28288.0,28282.0,0.8218]
[1680607548125,0.04910426,28289.0,28286.0,0.17676]
[1680607548342,0.04928426,28289.0,28287.0,0.17802481]
[1680607548562,0.04910426,28289.0,28288.0,0.036949]
[1680607548779,0.00018,28292.0,28287.0,0.036862]
[1680607549017,1.27272582,28293.0,28288.0,0.16467311]
[1680607549234,0.001,28289.0,28288.0,0.0227763]
[1680607549455,0.00018,28292.0,28288.0,0.0227763]
[1680607549675,0.02,28289.0,28288.0,0.0247763]
[1680607549899,0.01525104,28292.0,28288.0,0.0597673]
[1680607550150,0.01525104,28292.0,28289.0,0.03239073]
[1680607551259,0.01525104,28292.0,28290.0,0.036154]
[1680607551481,0.01525104,28292.0,28289.0,0.03239073]
[1680607551705,0.04992619,28294.0,28289.0,0.04652973]
[1680607551932,1.27249971,28293.0,28289.0,0.18842654]
[1680607552161,1.27249971,28293.0,28290.0,0.02112028]
[1680607552162,0.00018,28293.0,28290.0,0.02112028]
[1680607552385,0.007,28292.0,28290.0,0.001]
[1680607552605,0.04974619,28294.0,28290.0,0.037264]
[1680607552854,0.04963705,28294.0,28290.0,0.037264]
[1680607553125,0.04963705,28294.0,28289.0,0.04670973]
[1680607553358,0.04963705,28294.0,28290.0,0.037377]
[1680607553585,0.04963705,28294.0,28290.0,0.0480633]
[1680607553810,0.04963705,28294.0,28290.0,0.0106863]
[1680607554022,0.007,28292.0,28290.0,0.0258253]
[1680607554242,0.04963705,28294.0,28291.0,0.035209]
[1680607554461,0.05163705,28294.0,28290.0,0.0276863]
[1680607554900,0.04963705,28294.0,28290.0,0.0106863]
[1680607555113,0.007,28292.0,28290.0,0.0116863]
[1680607555327,0.04963705,28294.0,28291.0,0.037065]
[1680607555544,0.05163705,28294.0,28290.0,0.0276863]
[1680607555988,0.05163705,28294.0,28290.0,0.017]
[1680607556871,0.04963705,28294.0,28289.0,0.03239073]
[1680607557098,0.007,28292.0,28290.0,0.001]
[1680607557343,0.04963705,28294.0,28291.0,0.585938]
[1680607557564,0.05163705,28294.0,28292.0,0.236531]
[1680607557789,0.05163705,28294.0,28293.0,0.036231]
[1680607558018,0.3943,28296.0,28293.0,0.036411]
[1680607558298,0.3943,28296.0,28292.0,0.036296]
[1680607558521,0.002,28294.0,28292.0,0.054296]
[1680607558743,0.002,28294.0,28293.0,0.038]
[1680607558962,0.002,28294.0,28293.0,0.03818]
[1680607559835,0.01271121,28295.0,28293.0,0.038]
[1680607560059,0.01271121,28295.0,28293.0,0.00618]
[1680607560276,0.01271121,28295.0,28294.0,0.035234]
[1680607560520,0.001,28294.0,28293.0,0.01318]
[1680607560768,0.01271121,28295.0,28293.0,0.0798543]
[1680607560990,0.01371121,28295.0,28294.0,0.03714]
[1680607561428,0.01271121,28295.0,28294.0,0.03714]
[1680607561641,0.001,28294.0,28293.0,0.049265]
[1680607561872,0.008068,28294.0,28293.0,0.01318]
[1680607562126,0.008068,28294.0,28293.0,0.013]
[1680607562343,0.036342,28294.0,28293.0,0.013]
[1680607562562,0.029287,28294.0,28287.0,0.00018]
[1680607562776,0.007068,28294.0,28287.0,0.00018]
[1680607562994,0.257068,28294.0,28287.0,0.00018]
[1680607563462,0.27695692,28294.0,28293.0,0.002]
[1680607563686,0.27804192,28294.0,28287.0,0.14207681]
[1680607563906,0.26395692,28294.0,28287.0,0.14307681]
[1680607564127,0.30694248,28294.0,28288.0,0.01430768]
[1680607564353,0.30694248,28294.0,28293.0,0.002]
[1680607564573,0.34886548,28294.0,28293.0,0.002]
[1680607564821,0.291923,28294.0,28293.0,0.002]
[1680607565036,0.298991,28294.0,28293.0,0.002]
[1680607565260,0.298991,28294.0,28285.0,0.014321]
[1680607565486,0.0534,28292.0,28285.0,0.17133731]
[1680607565705,0.007069,28291.0,28285.0,0.0292605]
[1680607565928,0.007069,28291.0,28283.0,0.00012]
[1680607566147,0.007069,28291.0,28283.0,0.00018]
[1680607566148,0.021207,28291.0,28283.0,0.00018]
[1680607566590,0.022272,28290.0,28283.0,0.14207681]
[1680607566806,0.0534,28289.0,28283.0,0.15628449]
[1680607567035,0.06047,28289.0,28283.0,0.01438768]
[1680607567292,0.36047,28289.0,28283.0,0.00018]
[1680607567508,0.40964329,28289.0,28281.0,0.00018]
[1680607567729,0.40964329,28289.0,28281.0,0.14207681]
[1680607567958,0.40964229,28289.0,28281.0,0.56886681]
[1680607568178,0.40964229,28289.0,28281.0,0.39207681]
[1680607568416,0.12378129,28289.0,28282.0,0.37016768]
[1680607568640,0.12378129,28289.0,28282.0,0.51224449]
[1680607568641,0.10964229,28289.0,28282.0,0.51224449]
[1680607569076,0.10964229,28289.0,28283.0,0.25]
[1680607569302,0.10457329,28289.0,28284.0,0.07622445]
[1680607569536,0.10257329,28289.0,28284.0,0.21830126]
[1680607569998,0.04917329,28289.0,28284.0,0.07640445]
[1680607570225,0.05617329,28289.0,28284.0,0.07640445]
[1680607570454,0.05617329,28289.0,28285.0,0.05274045]
[1680607570455,0.04917329,28289.0,28285.0,0.05274045]
[1680607570682,0.06217329,28289.0,28285.0,0.05292045]
[1680607570922,0.04917329,28289.0,28285.0,0.05292045]
[1680607571906,0.04917329,28289.0,28285.0,0.19481726]
[1680607572142,0.04917329,28289.0,28286.0,0.286138]
[1680607572371,0.05617329,28289.0,28287.0,0.06955885]
[1680607572595,0.04917329,28289.0,28287.0,0.03408585]
[1680607572822,0.001,28289.0,28288.0,0.036679]
[1680607573046,0.16968,28292.0,28288.0,0.036679]
[1680607573259,0.16968,28291.0,28287.0,0.00018]
[1680607573482,0.16968,28292.0,28287.0,0.03047205]
[1680607573738,0.16968,28292.0,28287.0,0.17236886]
[1680607574169,0.34971705,28293.0,28287.0,0.00018]
[1680607574394,0.22278,28291.0,28284.0,6e-05]
[1680607574617,0.007069,28289.0,28283.0,0.1]
[1680607574878,0.014069,28289.0,28288.0,0.001]
[1680607575122,0.00018,28290.0,28288.0,0.55471056]
[1680607575349,0.02190142,28291.0,28289.0,1.14448943]
[1680607575582,0.02190142,28291.0,28290.0,0.641694]
[1680607575806,0.0494977,28294.0,28292.0,0.3718]
[1680607576031,0.0494977,28294.0,28293.0,0.300573]
[1680607576249,0.3943,28296.0,28293.0,0.300753]
[1680607576473,0.3943,28296.0,28294.0,0.213066]
[1680607576688,0.3943,28296.0,28295.0,0.050912]
[1680607576902,0.3943,28296.0,28295.0,0.051092]
[1680607577122,0.39420593,28296.0,28295.0,0.050912]
[1680607577813,0.39420593,28296.0,28295.0,0.107459]
[1680607578036,0.39620593,28296.0,28295.0,0.19566156]
[1680607578258,0.39420593,28296.0,28295.0,0.19566156]
[1680607578473,0.39620593,28296.0,28295.0,0.21466156]
[1680607578714,0.39620593,28296.0,28295.0,0.29141456]
[1680607578965,0.39720593,28296.0,28295.0,0.30441456]
[1680607579170,0.39420593,28296.0,28295.0,0.27241456]
[1680607579415,0.39620593,28296.0,28295.0,0.232646]
[1680607579631,0.39620593,28296.0,28295.0,0.055956]
[1680607579857,0.39620593,28296.0,28295.0,0.019]
[1680607579858,0.41613864,28296.0,28295.0,0.019]
[1680607580526,0.4905272,28296.0,28295.0,0.019]
[1680607580758,0.96640264,28296.0,28286.0,0.00018]
[1680607580986,0.3,28295.0,28285.0,0.3984]
[1680607581224,0.16968,28295.0,28286.0,0.30045528]
[1680607581443,0.21926543,28295.0,28287.0,0.035938]
[1680607581661,0.21926543,28295.0,28287.0,0.19197481]
[1680607581662,0.22651343,28295.0,28287.0,0.19197481]
[1680607581879,0.22126543,28295.0,28288.0,0.036977]
[1680607582089,0.21944543,28295.0,28288.0,0.17887381]
[1680607582301,0.22651343,28295.0,28289.0,0.05707338]
[1680607582560,0.22833343,28295.0,28289.0,0.14189681]
[1680607582830,0.0532,28294.0,28289.0,0.14189681]
[1680607583049,0.0532,28294.0,28287.0,0.01718]
[1680607583050,0.007068,28293.0,28287.0,0.01718]
[1680607583267,0.007068,28293.0,28284.0,0.00018]
[1680607583491,0.007068,28293.0,28288.0,0.017]
[1680607583705,0.007068,28293.0,28285.0,0.010018]
[1680607583916,0.007068,28293.0,28287.0,0.013]
[1680607583917,0.008068,28293.0,28287.0,0.013]
[1680607584191,0.008068,28293.0,28287.0,0.14189681]
[1680607584414,0.001,28293.0,28288.0,0.013]
[1680607584642,0.001,28293.0,28288.0,0.17038649]
[1680607584865,0.00018,28293.0,28289.0,0.036838]
[1680607585094,0.001,28293.0,28289.0,0.036838]
[1680607585529,0.00106,28293.0,28289.0,0.016838]
[1680607585744,0.001,28293.0,28289.0,0.016838]
[1680607585965,0.001,28293.0,28288.0,0.043446]
[1680607586203,0.52306,28294.0,28286.0,0.278282]
[1680607586204,0.52306,28294.0,28289.0,0.0367876]
[1680607586440,0.001,28293.0,28289.0,0.14624141]
[1680607586676,0.001,28293.0,28290.0,0.030699]
[1680607586889,0.001,28293.0,28290.0,0.221567]
[1680607587113,0.00118,28293.0,28291.0,0.031561]
[1680607587333,0.16968,28294.0,28292.0,0.0253128]
[1680607587999,0.16968,28294.0,28293.0,0.031521]
[1680607588476,0.16968,28294.0,28290.0,0.17691]
[1680607588694,0.25,28293.0,28289.0,0.00018]
[1680607588908,0.021207,28292.0,28287.0,0.00018]
[1680607589152,0.244187,28292.0,28286.0,0.00018]
[1680607589436,0.244187,28292.0,28285.0,0.010198]
[1680607589652,0.244187,28292.0,28290.0,0.017]
[1680607589868,0.028127,28291.0,28286.0,0.00018]
[1680607590090,0.007069,28290.0,28286.0,0.007]
[1680607590312,0.007069,28290.0,28287.0,0.030982]
[1680607590569,0.007069,28291.0,28287.0,0.030982]
[1680607590776,0.12972604,28292.0,28290.0,0.002]
[1680607590993,0.10265704,28292.0,28287.0,0.004118]
[1680607591224,0.060369,28292.0,28285.0,0.010198]
[1680607591434,0.060369,28292.0,28286.0,0.028717]
[1680607591661,0.060369,28292.0,28286.0,0.17079381]
[1680607591883,0.22298,28292.0,28287.0,0.031403]
[1680607592098,0.001,28290.0,28287.0,0.05134688]
[1680607592329,0.0533,28292.0,28288.0,0.031691]
[1680607592545,0.0543,28292.0,28288.0,0.031691]
[1680607592764,0.0533,28292.0,28288.0,0.031691]
[1680607593468,0.0603,28292.0,28288.0,0.032691]
[1680607593690,0.0603,28292.0,28288.0,0.001]
[1680607593932,0.067369,28292.0,28288.0,0.001]
[1680607594151,0.0603,28292.0,28288.0,0.015139]
[1680607594370,0.0603,28292.0,28289.0,0.031193]
[1680607594608,0.0603,28292.0,28288.0,0.001]
[1680607595482,0.0533,28292.0,28286.0,0.01432]
[1680607595697,0.0663,28292.0,28289.0,0.001]
[1680607595908,0.0533,28292.0,28287.0,0.0052621]
[1680607596118,0.0603,28292.0,28288.0,0.0317]
[1680607596338,0.049486,28291.0,28288.0,0.001]
[1680607596564,0.049486,28291.0,28286.0,0.00018]
[1680607596806,0.049486,28291.0,28289.0,0.001]
[1680607597017,0.027168,28290.0,28285.0,0.00018]
[1680607597301,0.22298,28292.0,28285.0,0.00018]
[1680607597522,0.007069,28291.0,28285.0,0.14207681]
[1680607597745,0.230049,28292.0,28285.0,0.00018]
[1680607597967,0.22998,28292.0,28291.0,0.00010908]
[1680607598184,0.250043,28292.0,28291.0,0.00010908]
[1680607598405,0.258112,28292.0,28291.0,0.00010908]
[1680607598631,0.257112,28292.0,28291.0,0.00010908]
[1680607598850,0.277112,28292.0,28291.0,0.00210908]